Cogmind - Beta 13 @@@ ROGUE MODE // 2024.05.23 @ 03:44:56 Player: CatPlusPlus Result: Destroyed by B-75 Beast with Magnetic Acceleration Cannon Performance ------------- Evolutions (2) 1000 Regions Visited (8) 1600 Robots Destroyed (117) 585 Value Destroyed (2913) 2913 Prototype IDs (32) 640 Alien Tech Used (0) 0 Bonus (681) 681 TOTAL SCORE: 7419 Bonus ------- High Alert Combat Kills 180 Follower Combat Kills 21 Entered Garrisons 200 Aligned with FarCom 300 Friendly Fire -20 Cogmind --------- Core Integrity 0/550 Matter 244/300 Energy 100/100 System Corruption 0% Temperature Warning (342) Movement Core (700) Ox13 Location -8/Garrison Parts ------- > --- POWER (1) -------- (None) > --- PROPULSION (3) --- (None) > --- UTILITY (4) ------ High-capacity Storage Unit > --- WEAPON (3) ------- (None) > --- INVENTORY (20) --- Cooling System High-capacity Matter Pod (200) Advanced Visual Processing Unit Experimental Sensor Array Improved Terrain Scanner Seismic Detector Long-range Tractor Beam Grenade Launcher Mini Grenade Launcher Improved Datajack Axe Peak State ------------ > --- POWER ------------ Heavy Ion Engine > --- PROPULSION ------- Light Treads Light Treads Light Treads > --- UTILITY ---------- Cooling System High-capacity Storage Unit Improved Light Armor Plating Shield Generator > --- WEAPON ----------- Advanced Beam Cannon Assault Cannon Axe > --- INVENTORY -------- Heavy Ion Engine Light Treads Light Treads Cooling System Cooling System High-capacity Matter Pod Experimental Sensor Array Improved Terrain Scanner Seismic Detector Light Armor Plating Light Armor Plating Long-range Tractor Beam Spread Laser Beamcaster Autogun Shock Bomb Launcher Grenade Launcher Mini Grenade Launcher Improved Datajack [Rating: 27] Favorites ----------- Power Heavy Ion Engine Engine Heavy Ion Engine Power Core Light Nuclear Core Propulsion Light Treads Treads Light Treads Wheel Wheel Utility High-capacity Storage Unit Device Cooling System Storage High-capacity Storage Unit Protection Light Armor Plating Weapon Advanced Beam Cannon Energy Gun Beamcaster Energy Cannon Advanced Beam Cannon Ballistic Gun Autogun Ballistic Cannon Assault Cannon Launcher Grenade Launcher Slashing Weapon Axe Build | -11 -10 -10 -9 -9 -9 -8 -8 -8 ------- Run | Yrd Mat Min Mat Min Exi Min Mat Gar Slots Evolved 4 | . . . 2 . . . 2 . Power . | . . . . . . . . . Propulsion 1 | . . . 1 . . . . . Utility 2 | . . . 1 . . . 1 . Weapon 1 | . . . . . . . 1 . Parts Attached 94 | 7 6 8 36 2 1 2 14 18 Power 11 | 1 1 1 5 . . . . 3 Engine 8 | 1 . 1 5 . . . . 1 Core 3 | . 1 . . . . . . 2 Reactor . | . . . . . . . . . Propulsion 20 | 2 1 . 11 . . . 3 3 Treads 19 | 2 1 . 10 . . . 3 3 Leg . | . . . . . . . . . Wheel 1 | . . . 1 . . . . . Hover . | . . . . . . . . . Flight . | . . . . . . . . . Utility 27 | 2 3 6 7 . 1 . 4 4 Device 13 | 1 2 5 2 . . . 1 2 Storage 3 | 1 1 . . . 1 . . . Processor . | . . . . . . . . . Hackware . | . . . . . . . . . Protection 11 | . . 1 5 . . . 3 2 Artifact . | . . . . . . . . . Weapon 36 | 2 1 1 13 2 . 2 7 8 Energy Gun 7 | . . . 3 . . . . 4 Energy Cannon 6 | . 1 . 3 1 . 1 . . Ballistic Gun 9 | 2 . . 4 . . . 2 1 Ballistic Cannon 3 | . . 1 1 . . . . 1 Launcher 7 | . . . 2 1 . 1 3 . Special Weapon . | . . . . . . . . . Impact Weapon . | . . . . . . . . . Slashing Weapon 4 | . . . . . . . 2 2 Piercing Weapon . | . . . . . . . . . Special Melee Weapon . | . . . . . . . . . Unidentified Prototypes 5 | . . 1 4 . . . . . Parts Lost 25 | . . . 2 . . . 3 20 Power 2 | . . . . . . . . 2 Propulsion 6 | . . . . . . . 1 5 Utility 8 | . . . 1 . . . 1 6 Weapon 9 | . . . 1 . . . 1 7 Highest Loss Streak 19 | . . . 1 . . . 1 19 To Critical Strikes 1 | . . . 1 . . . . . Average Slot Usage (%) 98 | . 100 100 98 100 100 100 98 94 Engine 8 | . 1 11 11 11 11 11 9 3 Core 2 | . 12 2 . . . . . 5 Treads 30 | . 28 28 32 33 33 33 26 24 Device 11 | . 14 13 10 11 11 11 10 8 Storage 11 | . 14 14 11 11 11 11 9 9 Protection 9 | . . . 10 11 11 11 16 16 Energy Cannon 10 | . 13 14 10 10 11 11 9 8 Ballistic Gun 4 | . 14 2 4 . . . . 7 Ballistic Cannon 7 | . . 11 7 11 11 11 9 4 Naked Turns . | . . . . . . . . . Heaviest Build 74 | 14 51 61 66 62 62 64 71 74 Greatest Support 60 | 40 40 40 60 60 60 60 60 60 Greatest Overweight (x) 17 | . 1 1 1 1 1 1 1 17 Average Overweight (x) . | . . 1 . 1 1 1 1 1 Largest Inventory Capacity 20 | 8 20 20 20 20 20 20 20 20 Average Capacity 19 | 7 17 20 20 20 20 20 20 20 Most Carried 20 | 6 20 20 20 20 20 20 20 20 Average Carried 18 | 3 14 19 19 19 20 20 19 19 Final Capacity 20 | 8 20 20 20 20 20 20 20 20 Final Carried 20 | 6 20 20 20 20 20 20 20 11 Class Distribution -------------------- 65% | Mutant 26% | Scavenger-Mutant 7% | Scavenger-Tank Dominant Class ---------------- Mutant | -10/Materials Mutant | -10/Mines Scavenger-Mutant | -9/Materials Mutant | -9/Mines Mutant | -9/Exiles Mutant | -8/Mines Mutant | -8/Materials Scavenger-Tank | -8/Garrison Resources | -11 -10 -10 -9 -9 -9 -8 -8 -8 ----------- Run | Yrd Mat Min Mat Min Exi Min Mat Gar Matter Collected 2574 | 311 535 90 774 50 . 35 328 451 Remotely . | . . . . . . . . . Salvage Created 3867 | 165 758 . 1416 20 . . 855 653 Parts 247 | 13 37 . 98 4 . . 62 33 Haulers Intercepted 8 | . 2 . 6 . . . . . Recyclers Shooed 12 | 2 5 . 5 . . . . . Parts Field Recycled . | . . . . . . . . . Retrieved Matter . | . . . . . . . . . Parts Self-Destructed . | . . . . . . . . . Prevented . | . . . . . . . . . Kills | -11 -10 -10 -9 -9 -9 -8 -8 -8 ------- Run | Yrd Mat Min Mat Min Exi Min Mat Gar Combat Hostiles Destroyed 81 | . 14 2 24 3 . . 20 18 Guns 11 | . 5 . 3 . . . 1 2 Cannons 48 | . 9 2 14 1 . . 6 16 AOE 19 | . . . 6 2 . . 11 . Classes Destroyed 14 | 2 5 1 3 . . . 3 . Worker 6 | . . . 2 . . . 4 . Builder 4 | . . . . . . . 4 . Tunneler 6 | 4 . . 2 . . . . . Hauler 8 | . 2 . 6 . . . . . Recycler 5 | 1 1 . 2 . . . 1 . Operator 1 | . 1 . . . . . . . Watcher 6 | . 2 . 4 . . . . . Swarmer 24 | . 3 . 6 3 . . 8 4 Grunt 43 | . 11 . 12 . . . 7 13 Brawler 2 | . . . 1 . . . . 1 Duelist 1 | . . . . . . . 1 . Sentry 8 | . . . 5 . . . 3 . Demolisher 2 | . . 2 . . . . . . Hunter 1 | . . . . . . . 1 . Best Kill Streak 22 | 3 4 2 5 3 . . 22 5 Combat Bots Only 13 | . 3 2 4 3 . . 13 5 Max Kills in Single Turn 3 | 1 1 1 2 2 . . 3 2 Gunslinging . | . . . . . . . . . Exploded 2 | . . . 2 2 . . 2 . Melee . | . . . . . . . . . Uniques/NPCs Destroyed . | . . . . . . . . . Combat | -11 -10 -10 -9 -9 -9 -8 -8 -8 -------- Run | Yrd Mat Min Mat Min Exi Min Mat Gar Hostile Shots Fired 380 | . 49 6 66 9 . 1 77 172 Missed 119 | . 13 1 21 1 . . 29 54 Damage Taken 4416 | . 405 175 649 82 . 7 728 2370 Core 762 | . 93 9 88 . . . 18 554 Absorbed by Shields 34 | . . . . . . . 13 21 Regen/Repaired (Parts) 102 | . . . 102 . . . . . Core Remaining (%) 79 | 100 . 59 . . . 78 . . Volleys Fired 274 | 16 49 5 86 4 1 . 36 77 Largest 3 | 2 2 2 2 2 2 . 3 3 Hottest 143 | 40 80 104 143 112 112 . 135 143 Shots Fired 541 | 32 100 12 160 7 2 . 63 165 Gun 219 | 32 51 . 54 . . . 7 75 Cannon 302 | . 49 12 101 6 2 . 42 90 Launcher 20 | . . . 5 1 . . 14 . Special . | . . . . . . . . . Kinetic 284 | 32 51 6 80 4 1 . 27 83 Thermal 237 | . 49 6 75 2 1 . 22 82 Explosive 4 | . . . . 1 . . 3 . Electromagnetic 16 | . . . 5 . . . 11 . Robot Hit Streak 17 | 4 14 8 12 3 . . 8 17 Robot Miss Streak 7 | 2 2 1 7 1 2 . 4 4 Penetration Max . | . . . . . . . . . Secondary Targets . | . . . . . . . . . Shots Hit Robots 317 | 15 65 8 86 3 . . 39 101 Core Hits 161 | 7 29 3 43 4 1 . 35 39 Critical Kills 3 | . 1 . 1 . . . 1 . Critical Parts Destroyed 1 | 1 . . . . . . . . Critical Strikes 5 | 1 1 . 1 . . . 2 . Meltdown 2 | . . . 1 . . . 1 . Destroy 2 | 1 1 . . . . . . . Blast 1 | . . . . . . . 1 . Melee Attacks 20 | . . . . . . . . 20 Impact . | . . . . . . . . . Slashing 20 | . . . . . . . . 20 Piercing . | . . . . . . . . . Sneak Attacks . | . . . . . . . . . Combat Hostiles . | . . . . . . . . . Follow-up Attacks . | . . . . . . . . . Damage Inflicted 7632 | 157 1073 171 2090 140 20 . 1945 2036 Guns 1921 | 157 383 . 469 . . . 44 868 Cannons 4149 | . 681 170 1351 72 20 . 687 1168 Explosions 1519 | . . . 239 66 . . 1214 . Melee . | . . . . . . . . . Ramming 43 | . 9 1 31 2 . . . . Kinetic 2709 | 157 383 100 884 26 . . 328 831 Thermal 3465 | . 681 70 936 46 20 . 507 1205 Explosive 496 | . . . . 66 . . 430 . Electromagnetic 919 | . . . 239 . . . 680 . Impact . | . . . . . . . . . Slashing . | . . . . . . . . . Piercing . | . . . . . . . . . Highest Corruption 2 | . 2 2 . . . . . . Average Corruption 2 | . 2 2 . . . . . . Corruption Purged . | . . . . . . . . . Corruption Blocked . | . . . . . . . . . Effects 32 | . 18 14 . . . . . . Message Errors 3 | . 1 2 . . . . . . Matter Fused 8 | . 4 4 . . . . . . Heat Flow Errors 4 | . 2 2 . . . . . . Energy Discharges 5 | . 3 2 . . . . . . Parts Fused 1 | . . 1 . . . . . . Data Loss (minor) 5 | . 5 . . . . . . . Data Loss (major) 2 | . 1 1 . . . . . . Misfires 4 | . 2 2 . . . . . . Overload Shots . | . . . . . . . . . Overflow Damage 84 | . 2 11 16 . . . 53 2 Projectiles 31 | . 2 11 14 . . . 2 2 Explosions 53 | . . . 2 . . . 51 . Melee . | . . . . . . . . . Knockbacks 11 | . . 1 2 1 . . 1 6 Impact 1 | . . 1 . . . . . . Kinetic 10 | . . . 2 1 . . 1 6 Secondary . | . . . . . . . . . Self-Inflicted Damage 77 | . . . . 21 . . 56 . Shots 3 | . . . . 1 . . 2 . Rammed 9 | . 1 1 6 1 . . . . Targets Rammed 12 | . 2 1 8 1 . . . . Kicked . | . . . . . . . . . Crushed 3 | . 1 . 2 . . . . . Highest Temperature 637 | . 189 300 171 . . . 108 637 Average Temperature 61 | . 50 128 27 . . . 41 90 Received Heat Transfer 1857 | . 210 . 207 . . . 234 1206 Effects 5 | . . . . . . . . 5 Shutdowns 1 | . . . . . . . . 1 Energy Bleed 1 | . . . . . . . . 1 Matter Decay 1 | . . . . . . . . 1 Short Circuit 1 | . . . . . . . . 1 Damage (minor) 1 | . . . . . . . . 1 Siege Activations . | . . . . . . . . . Robots Corrupted 1 | . . . . . . . 1 . Combat Hostiles 1 | . . . . . . . 1 . Parts Fried 6 | . . . 1 . . . 5 . Impact Corruptions . | . . . . . . . . . Robots Melted 2 | . . . 1 . . . 1 . Combat Hostiles 2 | . . . 1 . . . 1 . Parts Melted 7 | . 2 . 2 . . . 3 . Heat Transferred 6300 | . 1406 148 1628 74 37 . 903 2104 Parts Sabotaged . | . . . . . . . . . Parts Stolen . | . . . . . . . . . Parts Stripped . | . . . . . . . . . Power Chain Reactions 3 | . . . . . . . 3 . Alert | -11 -10 -10 -9 -9 -9 -8 -8 -8 ------- Run | Yrd Mat Min Mat Min Exi Min Mat Gar Peak Influence 783 | 25 304 51 420 228 . 74 577 783 Initial 245 | . 16 24 19 153 . . . 245 Average 162 | 12 112 20 147 79 . 25 226 556 Maximum Alert Level 3 | . 1 . 2 1 . . 2 3 Low Security (%) 67 | 100 94 100 59 68 . 100 59 . Level 1 21 | . 5 . 39 31 . . 14 24 Level 2 10 | . . . . . . . 25 70 Level 3 . | . . . . . . . . 4 Level 4 . | . . . . . . . . . Level 5 . | . . . . . . . . . High Security . | . . . . . . . . . Max Security . | . . . . . . . . . Squads Dispatched 13 | . 3 1 4 . . . 5 . Investigation 8 | . 2 1 4 . . . 1 . Extermination . | . . . . . . . . . Reinforcement 2 | . 1 . . . . . 1 . Assault . | . . . . . . . . . Garrison 3 | . . . . . . . 3 . Intercept . | . . . . . . . . . Searches Triggered . | . . . . . . . . . Construction Impeded 1 | . . . . . . . 1 . Haulers Reinforced . | . . . . . . . . . Active Scanning Responses . | . . . . . . . . . Cargo Convoy Interrupts . | . . . . . . . . . Stealth | -11 -10 -10 -9 -9 -9 -8 -8 -8 --------- Run | Yrd Mat Min Mat Min Exi Min Mat Gar Distress Signals 2 | . . 1 1 . . . . . Communications Jammed . | . . . . . . . . . Distress Signals . | . . . . . . . . . Times Spotted 115 | . 25 2 40 3 . 3 24 18 Peak Tracking Total 7 | . 4 2 4 3 2 3 7 4 Tactical Retreats 5 | . 2 . 1 . . . 2 . Traps | -11 -10 -10 -9 -9 -9 -8 -8 -8 ------- Run | Yrd Mat Min Mat Min Exi Min Mat Gar Traps Triggered 10 | . 1 . 2 . . . 2 5 Indirectly 3 | . . . 1 . . . 2 . Trap Hack Attempts . | . . . . . . . . . Triggered . | . . . . . . . . . Disarmed . | . . . . . . . . . Reprogrammed . | . . . . . . . . . Reused . | . . . . . . . . . Traps Extracted . | . . . . . . . . . Installed . | . . . . . . . . . Triggered 1 | . . . . . . . 1 . Machines | -11 -10 -10 -9 -9 -9 -8 -8 -8 ---------- Run | Yrd Mat Min Mat Min Exi Min Mat Gar Machines Disabled 5 | . 1 . 2 . . . . 2 Max in Single Turn 1 | . 1 . 1 . . . . 1 Machines Repaired . | . . . . . . . . . Machines Dismantled . | . . . . . . . . . Machines Sabotaged . | . . . . . . . . . Overloaded Fab Kills . | . . . . . . . . . Hacking | -11 -10 -10 -9 -9 -9 -8 -8 -8 --------- Run | Yrd Mat Min Mat Min Exi Min Mat Gar Machines Accessed 27 | . 8 1 13 1 2 . 1 1 Terminals 17 | . 6 . 9 1 . . . 1 Fabricators . | . . . . . . . . . Repair Stations 2 | . . . 2 . . . . . Recycling Units 2 | . 2 . . . . . . . Scanalyzers 2 | . . . 2 . . . . . Garrison Access 1 | . . . . . . . 1 . Total Hacks 75 | . 25 1 42 2 2 . 1 2 Successful 40 | . 14 1 20 1 2 . 1 1 Failed 35 | . 11 . 22 1 . . . 1 Catastrophic 3 | . . . 3 . . . . . Database Lockouts . | . . . . . . . . . Manual 33 | . 15 . 15 2 1 . . . Terminals 53 | . 20 . 29 2 . . . 2 Fabricators . | . . . . . . . . . Repair Stations 6 | . . . 6 . . . . . Recycling Units 5 | . 5 . . . . . . . Scanalyzers 7 | . . . 7 . . . . . Garrison Access 1 | . . . . . . . 1 . Terminal Hacks 23 | . 9 1 9 1 2 . . 1 Record 1 | . . . . . 1 . . . Part Schematic 5 | . 2 . 3 . . . . . Robot Analysis 6 | . 4 . 1 1 . . . . Prototype ID Bank 2 | . 1 . 1 . . . . . Open Door 1 | . . 1 . . . . . . Branch Access Points 1 | . . . 1 . . . . . Terminal Index 1 | . 1 . . . . . . . Unreport Threat 2 | . . . 2 . . . . . Locate Traps 2 | . 1 . 1 . . . . . Patrol Navigation 1 | . . . . . . . . 1 Derelict Proto ID Bank 1 | . . . . . 1 . . . Fabricator Hacks . | . . . . . . . . . Repair Station Hacks 4 | . . . 4 . . . . . Scan Component 2 | . . . 2 . . . . . Repair 2 | . . . 2 . . . . . Recycling Unit Hacks 2 | . 2 . . . . . . . Retrieve Components 2 | . 2 . . . . . . . Scanalyzer 5 | . . . 5 . . . . . Insert Component 3 | . . . 3 . . . . . Analyze 2 | . . . 2 . . . . . Garrison Access Hacks 1 | . . . . . . . 1 . Unlock Access 1 | . . . . . . . 1 . Unauthorized Hacks 5 | . 3 . 2 . . . . . Terminals 3 | . 1 . 2 . . . . . Botnet 3 | . 1 . 2 . . . . . Fabricators . | . . . . . . . . . Repair Stations . | . . . . . . . . . Recycling Units 2 | . 2 . . . . . . . Tunnel 2 | . 2 . . . . . . . Scanalyzers . | . . . . . . . . . Garrison Access . | . . . . . . . . . Data Cores Recovered . | . . . . . . . . . Used . | . . . . . . . . . Hacking Detections 22 | . 7 . 13 1 . . . 1 Full Trace Events 1 | . . . 1 . . . . . Feedback Events . | . . . . . . . . . Feedback Blocked . | . . . . . . . . . Robot Schematics Acquired . | . . . . . . . . . Robots Built . | . . . . . . . . . Authchips . | . . . . . . . . . Time . | . . . . . . . . . Total Robot Build Rating . | . . . . . . . . . Part Schematics Acquired 7 | . 2 . 5 . . . . . Parts Built . | . . . . . . . . . Authchips . | . . . . . . . . . Time . | . . . . . . . . . Total Part Build Rating . | . . . . . . . . . Parts Repaired 2 | . . . 2 . . . . . Time 91 | . . . 91 . . . . . Parts Recycled . | . . . . . . . . . Recycled Matter . | . . . . . . . . . Retrieved Matter . | . . . . . . . . . Retrieved Components 18 | . 18 . . . . . . . Parts Scanalyzed 2 | . . . 2 . . . . . Part Schematics Acquired 2 | . . . 2 . . . . . Parts Damaged . | . . . . . . . . . Bothacking | -11 -10 -10 -9 -9 -9 -8 -8 -8 ------------ Run | Yrd Mat Min Mat Min Exi Min Mat Gar Used RIF Installer . | . . . . . . . . . Robots Hacked . | . . . . . . . . . Non-combat . | . . . . . . . . . Combat . | . . . . . . . . . Robot Hacks Applied . | . . . . . . . . . Relay Couplers Released . | . . . . . . . . . Fabnet Peak Effective % . | . . . . . . . . . Robots Rewired . | . . . . . . . . . Allies Hacked . | . . . . . . . . . Hacks Repelled . | . . . . . . . . . Allies | -11 -10 -10 -9 -9 -9 -8 -8 -8 -------- Run | Yrd Mat Min Mat Min Exi Min Mat Gar Total Allies 6 | . . . . 6 . . . . Largest Group 6 | . . . . 6 6 2 1 . Highest-Rated Group 113 | . . . . 113 113 32 16 . Highest-Rated Ally 31 | . . . . 31 31 16 16 . Total Orders . | . . . . . . . . . Ally Attacks 19 | . . . . . 7 6 6 . Total Damage 206 | . . . . . 94 52 60 . Kills 7 | . . . . . 4 3 . . Allies Corrupted . | . . . . . . . . . Allies Melted . | . . . . . . . . . Intel | -11 -10 -10 -9 -9 -9 -8 -8 -8 ------- Run | Yrd Mat Min Mat Min Exi Min Mat Gar Robot Analysis Total 6 | . 4 . 1 1 . . . . Derelict Logs Recovered 4 | . . 1 . 3 . . . . Drone Launches . | . . . . . . . . . Drone Recoveries . | . . . . . . . . . Exploration | -11 -10 -10 -9 -9 -9 -8 -8 -8 ------------- Run | Yrd Mat Min Mat Min Exi Min Mat Gar Turns Passed 11375 | 171 1623 1053 3508 1276 776 1159 434 1375 Spaces Moved 4303 | 73 661 406 1275 524 322 481 133 428 Core 8 | 5 . . . . . . . 3 Treads 4295 | 68 661 406 1275 524 322 481 133 425 Legs . | . . . . . . . . . Wheels . | . . . . . . . . . Hover . | . . . . . . . . . Flight . | . . . . . . . . . Fastest Speed 50 | 50 160 240 160 240 240 240 240 240 Average Speed 234 | 152 214 240 236 240 240 240 240 245 Slowest Speed 900 | 160 240 240 240 240 240 240 240 900 Overloaded Moves . | . . . . . . . . . Propulsion Burnouts . | . . . . . . . . . Robots Hopped . | . . . . . . . . . Cave-ins Triggered . | . . . . . . . . . Exploration Rate (%) 64 | 5 95 88 73 98 70 85 12 53 Regions Visited 8 Branch Regions 4 Pre-discovered Areas 3 | . 2 . . . 1 . . . Known Exits Taken 2 | . . . 1 . . . 1 . Unknown Exits Taken 6 | 1 1 1 . 1 1 1 . . Scrap Searched 6 | . . 2 . 3 . 1 . . Spaces Dug 9 | . . . . . . . . 9 Terrain Destroyed 53 | . . 1 5 7 . . 31 9 Melee 9 | . . . . . . . . 9 Projectile 13 | . . 1 5 3 . . 4 . AOE 31 | . . . . 4 . . 27 . Terrain Rammed . | . . . . . . . . . Walls Destroyed . | . . . . . . . . . Machines Disabled . | . . . . . . . . . Actions | -11 -10 -10 -9 -9 -9 -8 -8 -8 --------- Run | Yrd Mat Min Mat Min Exi Min Mat Gar Total 5103 | 101 776 478 1627 534 325 487 187 588 Wait 268 | . 31 45 154 2 1 1 . 34 Move 4296 | 72 660 405 1274 523 321 480 133 428 Hop . | . . . . . . . . . Pick Up 62 | 6 19 4 26 1 . 2 3 1 Fast Attach 26 | 7 1 4 11 . . . 2 1 Attach 16 | . . . 2 . . . 4 10 Detach 1 | . . 1 . . . . . . Swap 52 | . 5 4 23 2 1 2 8 7 Drop 69 | . 9 9 43 1 1 2 1 3 Fire 274 | 16 49 5 86 4 1 . 36 77 Melee 20 | . . . . . . . . 20 Ram . | . . . . . . . . . Kick . | . . . . . . . . . Crush 12 | . 2 1 8 1 . . . . Escape Stasis 7 | . . . . . . . . 7 Rewire . | . . . . . . . . . Trap . | . . . . . . . . . Miscellaneous . | . . . . . . . . . Route ------- -11/Scrapyard -10/Materials (discovered 4 exits: *Mat x2 / *Min x2) -10/Mines (discovered 3 exits: *Mat x2 / Sub) -9/Materials (discovered 3 exits: *Mat x2 / *Min) -9/Mines (discovered 3 exits: *Mat x2 / *Exi) -9/Exiles -8/Mines (discovered 2 exits: *Mat x2) -8/Materials -8/Garrison (discovered 3 exits: [*Mat x3]) History --------- Turn | Location | Event 5 | -11/Scrapyard | Discovered new exit (range 16) 172 | -11/Scrapyard | Entered Materials 301 | -10/Materials | Build established: Mutant 866 | -10/Materials | Discovered new exit (range 5) 1101 | -10/Materials | Discovered new exit (range 5) 1217 | -10/Materials | Discovered new exit (range 7) 1711 | -10/Materials | Discovered new exit (range 3) 1795 | -10/Materials | Entered Mines 1969 | -10/Mines | Met a Derelict shopkeep closing up shop 2076 | -10/Mines | Assembled infested the area 2347 | -10/Mines | Found a damaged Exp. Sensor Array with a note attached 2353 | -10/Mines | Found Prototype Device 2353 | -10/Mines | Identified Exp. Sensor Array 2637 | -10/Mines | Discovered new exit (range 7) 2688 | -10/Mines | Identified exit to Subcaves 2745 | -10/Mines | Discovered new exit (range 5) 2848 | -10/Mines | Entered Materials 2848 | -9/Materials | Evolved 2 slots: Propulsion x1, Utility x1 3125 | -9/Materials | Discovered new exit (range 6) 3354 | -9/Materials | Build established: Scavenger-Mutant 3702 | -9/Materials | Repaired Hrd. Medium Armor Plating 3718 | -9/Materials | Discovered new exit (range 3) 4794 | -9/Materials | Identified exit to Mines 5309 | -9/Materials | Discovered new exit (range 12) 5440 | -9/Materials | Build established: Mutant 5961 | -9/Materials | Repaired Broken Assault Cannon 6112 | -9/Materials | Build established: Scavenger-Mutant 6356 | -9/Materials | Entered Mines 6427 | -9/Mines | Learned 2 Materials zone layouts 6461 | -9/Mines | Learned Materials emergency access door positions 6558 | -9/Mines | Build established: Mutant 6744 | -9/Mines | Learned Materials stockpile data 6782 | -9/Mines | Assisted by bots powering up and referring to "LRC-V3" 7019 | -9/Mines | Discovered new exit (range 10) 7225 | -9/Mines | Deemed a non-threat by the Exiles lab entrance 7381 | -9/Mines | Discovered new exit (range 13) 7413 | -9/Mines | Received a Mining Laser from a helpful Derelict 7621 | -9/Mines | Discovered new exit (range 5) 7632 | -9/Mines | Entered Exiles 7632 | -9/Exiles | Accompanied by 6 allies 7662 | -9/Exiles | Led the pair of lost Derelicts to a safe place 7690 | -9/Exiles | Met 8R-AWN 7731 | -9/Exiles | Met EX-HEX 7862 | -9/Exiles | Met EX-DEC 7905 | -9/Exiles | Learned location of Zion (-6) 8090 | -9/Exiles | Met EX-BIN 8119 | -9/Exiles | Aligned with FarCom system 8121 | -9/Exiles | Given EX-Vault access code 8176 | -9/Exiles | Opened EX-Vault 8232 | -9/Exiles | Warned to stay clear of 0b10 Research branches 8273 | -9/Exiles | Exiles lab attacked by MAIN.C 8385 | -9/Exiles | Discovered new exit (range 10) 8393 | -9/Exiles | Attacked by the Exiles 8408 | -9/Exiles | Entered Mines 8408 | -8/Mines | Accompanied by 2 allies 8866 | -8/Mines | Discovered new exit (range 9) 8983 | -8/Mines | Discovered new exit (range 7) 9567 | -8/Mines | Entered Materials 9567 | -8/Materials | Accompanied by 1 ally 9567 | -8/Materials | Evolved 2 slots: Utility x1, Weapon x1 9688 | -8/Materials | Garrison activated, responded to threat 9904 | -8/Materials | Destroyed 13 combat bots 10001 | -8/Materials | Identified exit to Garrison 10001 | -8/Materials | Entered Garrison 10223 | -8/Garrison | Build established: Scavenger-Tank 10338 | -8/Garrison | Triggered checkpoint 10338 | -8/Garrison | Triggered checkpoint 10505 | -8/Garrison | Triggered checkpoint 10575 | -8/Garrison | Discovered new exit (range 14) 10678 | -8/Garrison | Triggered checkpoint 10860 | -8/Garrison | Discovered new exit (range 5) 11028 | -8/Garrison | Discovered new exit (range 8) 11046 | -8/Garrison | Build established: Scavenger-Mutant 11053 | -8/Garrison | Triggered checkpoint 11197 | -8/Garrison | Spotted B-75 Beast 11327 | -8/Garrison | Core integrity fell below 50% 11354 | -8/Garrison | Core integrity fell below 20% 11376 | -8/Garrison | Destroyed by B-75 Beast with Magnetic Acceleration Cannon Last Messages --------------- 11288_ Overheating: Matter decay (-44). 11290_ Power failure, Neutrino Core shutdown. 11292_ Particle Gun destroyed. 11293_ Acquired 3 matter. 11294_ Cooling System broken. 11294_ Overheating: Short circuit. 11294_ Acquired 13 matter. 11299_ Overheating: Energy bleed (-47). 11308_ Acquired 5 matter. 11315_ Acquired 6 matter. 11320_ Neutrino Core destroyed. 11326_ Lgt. Treads destroyed. 11348_ Spread Laser destroyed. 11350_ Acquired 6 matter. 11353_ Knocked back. 11376_ Imp. EM Shotgun destroyed. 11376_ Hvy. Ion Engine destroyed. 11376_ Critical hit (Meltdown: +330). 11376_ Cooling System destroyed. 11376_ Critical hit (Blast). Map ----- +----------------------------------------------------+ | ???????????????????????????????????# ## ## | | ???????????????????????????????????# ## ## | | ???????????????????????????????????" | | ???????????????????????????????????" | | ???????????????????????????????????" | | ???????????????????????????????????" | | ???????????????????????????????????# ## ## | | ?????????????????????????########### ## ## | | ?????????????????????????# ! | | ?????????????????????????# % * | | ?????????????????????????# ######## | | ?????????????????????????# #??????###### ##### | | ?????????????????????????# #???????????# % #???? | | ?????????????????????????# #???????????######???? | | ??????????#"?????????????# #????????????????????? | | ??????????#"! #########??# #????????????????????? | | ??????????#"" #??#BB#????????????????????? | | ??????????#"""][*!*!"#???#BB#????????????????????? | | ??????????#""""""""" ##??# #??????????????????### | | ???????????##########"#??# #??????????????????? | | ???????????????#"#""#"#### #????????????????????? | | ????????????????# #????????????????????? | | ????????????????# #????????????????????? | | ????????????????# < ##### ###????????????????????? | | ????????????????# #???# #??????????????????????? | | ????????????????#####???#@#?????????######???????? | | ????????????????????????# #?????????"""""#???????? | | ????????????????????????#%########### ##???????? | | ????????????????????????#% #???????? | | ????????????????????????####### ########???????? | | ??????????????????????????????# #??????????????? | | ??????????????????????????????#####??????????????? | | ?????????????????????????????????????????????????? | | ?????????????????????????????????????????????????? | | ?????????????????????????????????????????????????? | | ?????????????????????????????????????????????????? | | ?????????????????????????????????????????????????? | | ?????????????????????????????????????????????????? | | ?????????????????????????????????????????????????? | | ?????????????????????????????????????????????????? | | ?????????????????????????????????????????????????? | | ?????????????????????????????????????????????????? | | ?????????????????????????????????????????????????? | | ?????????????????????????????????????????????????? | | ?????????????????????????????????????????????????? | | ?????????????????????????????????????????????????? | | ?????????????????????????????????????????????????? | | ?????????????????????????????????????????????????? | | ?????????????????????????????????????????????????? | | ?????????????????????????????????????????????????? | +----------------------------------------------------+ Best States ------------- Heat Dissipation 53 Energy Generation 19 Energy Capacity 315 Matter Stores 300 Matter Capacity 300 Sight Range 16 Terrain Scan Density 10 Armor Coverage 300 Evasion (%) 40 Recoil Reduction 3 Item Schematics ----------------- Hcp. Storage Unit | -10/Materials | Hacked Huge Storage Unit | -10/Materials | Hacked Plasma Cutter | -9/Materials | Hacked Arm. Wheel | -9/Materials | Hacked Imp. Treads | -9/Materials | Hacked Lrn. Tractor Beam | -9/Materials | Scanalyzed Seismic Detector | -9/Materials | Scanalyzed Robot Schematics ------------------ None Fabricated ------------ Nothing Alien Tech Used ----------------- None Achievements -------------- None Challenges ------------ None Game ------ Seed GrapheneTripodDrive Manual? 0 Play Time 00:46:58 Cumulative 173.4 hours Start 2024.05.23 @ 02:56:53 End 2024.05.23 @ 03:44:56 Sessions 1 Manual Loads 0 Difficulty Rogue Special Mode None Game No. 90 Rogue 90 Adventurer 0 Explorer 0 Win Type - Total 6 Types 3/0/2/1/0/0/0/0/0 Lore% 62 Gallery% 81 Achievement% 58 Wizard Run 0 Options --------- Layout 2 ASCII 0 Keyboard 1 Movement Numpad Keybinds 0 Fullscreen 2 Font 32/Tamsyn Map View 50x44 Zoom Use 0% Tactical HUD 1 Map Filters NONE Filters NONE Steam 1 RUN: 94dc7834-3b71-4d86-ba0d-6e6c04a0c887